fUSD/lending_fUSD_20250629
["ID","MTS","AMOUNT","RATE_DAILY","PERIOD"]
[368533145,1751199038509,-7682.77840113,0.00025786,2]
[368533147,1751199038518,-250.0,0.00025811,2]
[368533149,1751199038528,-170.2,0.00025898,2]
[368533150,1751199038537,-1027.94330592,0.00026003,14]
[368533152,1751199038546,-215.0738,0.00026011,2]
[368533154,1751199038555,-490.0,0.00026025,3]
[368533155,1751199038564,-797.18,0.00026025,3]
[368533157,1751199038573,-584.15,0.00026025,3]
[368533159,1751199038582,-735.5,0.00026025,3]
[368533160,1751199038591,-615.06,0.00026025,3]
[368533162,1751199038601,-2064.92,0.00026025,3]
[368533164,1751199038609,-490.0,0.00026025,3]
[368533166,1751199038619,-2101.83,0.00026025,3]
[368533167,1751199038629,-524.41,0.00026025,3]
[368533169,1751199038638,-490.0,0.00026025,3]
[368533171,1751199038647,-490.0,0.00026025,3]
[368533173,1751199038657,-490.0,0.00026025,3]
[368533174,1751199038666,-2034.82,0.00026025,3]
[368533176,1751199038675,-490.0,0.00026025,3]
[368533178,1751199038684,-490.0,0.00026025,3]
[368533180,1751199038693,-490.0,0.00026025,3]
[368533181,1751199038702,-501.55015801,0.00026025,3]
[368533183,1751199038711,-2667.49,0.00026025,3]
[368533185,1751199038721,-490.0,0.00026025,3]
[368533187,1751199038730,-1811.7,0.00026025,3]
[368533189,1751199038739,-780.28,0.00026025,3]
[368533190,1751199038748,-696.46,0.00026025,3]
[368533192,1751199038759,-881.0,0.00026025,3]
[368533194,1751199038768,-5063.18,0.00026025,3]
[368533195,1751199038777,-490.0,0.00026026,3]
[368533197,1751199038787,-490.0,0.00026026,3]
[368533199,1751199038796,-491.40099592,0.00026026,3]
[368533201,1751199038805,-493.27,0.00026026,3]
[368533202,1751199038815,-505.72,0.00026026,3]
[368533204,1751199038824,-490.0,0.00026026,3]
[368533206,1751199038833,-579.85,0.00026026,3]
[368533208,1751199038842,-1000.0,0.00026026,3]
[368533210,1751199038850,-490.0,0.00026026,3]
[368533211,1751199038859,-490.0,0.00026026,3]
[368533213,1751199038868,-500.0,0.00026026,3]
[368533215,1751199038877,-490.0,0.00026026,3]
[368533217,1751199038887,-539.37,0.00026026,3]
[368533218,1751199038896,-618.13794041,0.00026026,3]
[368533220,1751199038905,-490.0,0.00026026,3]
[368533222,1751199038914,-1978.22,0.00026026,3]
[368533224,1751199038923,-1353.16,0.00026026,3]
[368533226,1751199038933,-4829.05,0.00026026,3]
[368533227,1751199038942,-490.0,0.00026026,3]
[368533229,1751199038951,-490.0,0.00026026,3]
[368533231,1751199038960,-1586.81,0.00026026,3]
[368533233,1751199038969,-1448.59,0.00026026,3]
[368533234,1751199038978,-490.0,0.00026026,3]
[368533236,1751199038988,-490.0,0.00026026,3]
[368533238,1751199038997,-2155.36,0.00026026,3]
[368533240,1751199039007,-361.12,0.00026026,2]
[368533242,1751199039016,-1694.12,0.00026026,3]
[368533243,1751199039025,-490.0,0.00026026,2]
[368533245,1751199039035,-670.56,0.00026026,3]
[368533247,1751199039044,-1921.87,0.00026026,3]
[368533249,1751199039054,-1710.84,0.00026026,3]
[368533251,1751199039063,-885.54,0.00026026,3]
[368533253,1751199039073,-490.0,0.00026026,2]
[368533254,1751199039082,-490.0,0.00026027,3]
[368533256,1751199039092,-490.0,0.00026027,3]
[368533258,1751199039101,-490.0,0.00026027,3]
[368533260,1751199039111,-579.17,0.00026027,3]
[368533262,1751199039119,-1633.18,0.00026027,3]
[368533263,1751199039128,-490.0,0.00026027,3]
[368533265,1751199039138,-490.0,0.00026027,3]
[368533267,1751199039146,-490.0,0.00026027,3]
[368533269,1751199039156,-2022.53,0.00026027,3]
[368533271,1751199039165,-1446.01,0.00026027,3]
[368533272,1751199039174,-836.17,0.00026027,3]
[368533274,1751199039183,-540.67,0.00026027,3]
[368533276,1751199039193,-532.39,0.00026027,3]
[368533278,1751199039203,-490.0,0.00026027,3]
[368533280,1751199039212,-756.99,0.00026027,3]
[368533282,1751199039221,-1649.78,0.00026027,3]
[368533283,1751199039230,-1652.36,0.00026027,3]
[368533285,1751199039240,-2273.98,0.00026027,3]
[368533287,1751199039249,-662.3,0.00026027,3]
[368533289,1751199039259,-1981.27,0.00026027,3]
[368533291,1751199039268,-990.39,0.00026027,3]
[368533293,1751199039276,-499.4,0.00026027,3]
[368533294,1751199039286,-1466.1,0.00026027,3]
[368533296,1751199039295,-1757.8,0.00026027,3]
[368533298,1751199039304,-1406.09,0.00026027,3]
[368533300,1751199039313,-1501.83,0.00026027,3]
[368533302,1751199039323,-545.82,0.00026027,3]
[368533304,1751199039332,-529.38,0.00026027,3]
[368533305,1751199039340,-151.0,0.0002603,2]
[368533307,1751199039349,-200.0,0.00026106,7]
[368533309,1751199039359,-198.0,0.00026111,2]
[368533311,1751199039367,-300.0,0.00026231,2]
[368533313,1751199039377,-500.0,0.00026231,2]
[368533314,1751199039386,-500.0,0.00026231,2]
[368533316,1751199039395,-500.0,0.00026231,2]
[368533318,1751199039404,-500.0,0.00026231,2]
[368533320,1751199039413,-500.0,0.00026231,2]
[368533322,1751199039423,-500.0,0.00026231,2]
[368533324,1751199039432,-500.0,0.00026231,2]
[368533326,1751199039440,-535.67769595,0.00026231,2]
[368533327,1751199039450,-178.42522448,0.00026231,2]
[368533329,1751199039459,-300.0,0.00026231,2]
[368533331,1751199039468,-151.0,0.00026231,2]
[368533333,1751199039478,-300.0,0.00026231,2]
[368533335,1751199039488,-300.0,0.00026231,2]
[368533336,1751199039496,-302.0,0.00026231,2]
[368533338,1751199039506,-300.0,0.00026231,2]
[368533340,1751199039515,-300.0,0.00026231,2]
[368533342,1751199039524,-300.0,0.00026231,2]
[368533343,1751199039533,-300.0,0.00026231,2]
[368533345,1751199039542,-300.0,0.00026231,2]
[368533347,1751199039552,-400.0,0.00026231,2]
[368533349,1751199039562,-1000.0,0.00026231,2]
[368533351,1751199039571,-1000.0,0.00026231,2]
[368533352,1751199039580,-500.0,0.00026231,2]
[368533354,1751199039589,-678.2515787,0.00026231,2]
[368533356,1751199039598,-150.0,0.00026247,2]
[368533358,1751199039607,-21247.67738404,0.00026247,2]
[368533360,1751199039617,-150.0,0.00026247,2]
[368533361,1751199039627,-5742.16056794,0.00026247,2]
[368533363,1751199039636,-1027.94330592,0.00026279,14]
[368533365,1751199039645,-5603.40229624,0.00026289,2]
[368533367,1751199039655,-16810.2068887,0.00026291,2]
[368533369,1751199039663,-490.0,0.00026299,3]
[368533370,1751199039672,-797.18,0.00026299,3]
[368533372,1751199039681,-584.15,0.00026299,3]
[368533374,1751199039690,-735.5,0.00026299,3]
[368533376,1751199039699,-615.06,0.00026299,3]
[368533378,1751199039708,-2064.92,0.00026299,3]
[368533379,1751199039717,-490.0,0.00026299,3]
[368533381,1751199039726,-2101.83,0.00026299,3]
[368533383,1751199039734,-524.41,0.00026299,3]
[368533385,1751199039743,-490.0,0.00026299,3]
[368533387,1751199039753,-490.0,0.00026299,3]
[368533388,1751199039764,-2034.82,0.00026299,3]
[368533390,1751199039779,-503.49973466,0.00026299,3]
[368533392,1751199039788,-490.0,0.00026299,3]
[368533394,1751199039797,-2667.49,0.00026299,3]
[368533396,1751199039807,-490.0,0.00026299,3]
[368533398,1751199039819,-1811.7,0.00026299,3]
[368533400,1751199039828,-780.28,0.00026299,3]
[368533401,1751199039837,-696.46,0.00026299,3]
[368533403,1751199039847,-881.0,0.00026299,3]
[368533405,1751199039856,-5063.18,0.00026299,3]
[368533407,1751199039865,-490.0,0.000263,3]
[368533408,1751199039875,-490.0,0.000263,3]
[368533411,1751199039884,-493.27,0.000263,3]
[368533414,1751199039893,-505.72,0.000263,3]
[368533416,1751199039902,-490.0,0.000263,3]
[368533418,1751199039911,-579.85,0.000263,3]
[368533420,1751199039928,-1000.0,0.000263,3]
[368533423,1751199039940,-490.0,0.000263,3]
[368533425,1751199039949,-490.0,0.000263,3]
[368533427,1751199039960,-181.40165931,0.000263,3]
[368533429,1751199039970,-539.37,0.000263,3]
[368533431,1751199039980,-490.0,0.000263,3]
[368533433,1751199039989,-1978.22,0.000263,3]
[368533435,1751199039999,-1353.16,0.000263,3]
[368533437,1751199040009,-4829.05,0.000263,3]
[368533439,1751199040019,-490.0,0.000263,3]
[368533440,1751199040028,-490.0,0.000263,3]
[368533441,1751199040037,-1586.81,0.000263,3]
[368533442,1751199040047,-1448.59,0.000263,3]
[368533443,1751199040056,-490.0,0.000263,3]
[368533444,1751199040066,-490.0,0.000263,3]
[368533445,1751199040075,-2155.36,0.000263,3]
[368533446,1751199040084,-1694.12,0.000263,3]
[368533447,1751199040094,-490.0,0.000263,2]
[368533448,1751199040105,-670.56,0.000263,3]
[368533449,1751199040114,-1921.87,0.000263,3]
[368533450,1751199040123,-1710.84,0.000263,3]
[368533451,1751199040132,-885.54,0.000263,3]
[368533452,1751199040142,-490.0,0.00026301,3]
[368533453,1751199040151,-490.0,0.00026301,3]
[368533454,1751199040160,-490.0,0.00026301,3]
[368533455,1751199040169,-579.17,0.00026301,3]
[368533456,1751199040178,-1633.18,0.00026301,3]
[368533457,1751199040187,-490.0,0.00026301,3]
[368533458,1751199040196,-490.0,0.00026301,3]
[368533459,1751199040206,-490.0,0.00026301,3]
[368533460,1751199040215,-2022.53,0.00026301,3]
[368533461,1751199040224,-1446.01,0.00026301,3]
[368533462,1751199040233,-836.17,0.00026301,3]
[368533464,1751199040242,-540.67,0.00026301,3]
[368533465,1751199040252,-532.39,0.00026301,3]
[368533466,1751199040262,-490.0,0.00026301,3]
[368533468,1751199040271,-756.99,0.00026301,3]
[368533471,1751199040281,-1649.78,0.00026301,3]
[368533472,1751199040291,-1652.36,0.00026301,3]
[368533474,1751199040300,-2273.98,0.00026301,3]
[368533476,1751199040309,-662.3,0.00026301,3]
[368533479,1751199040319,-1981.27,0.00026301,3]
[368533481,1751199040329,-990.39,0.00026301,3]
[368533483,1751199040339,-499.4,0.00026301,3]
[368533485,1751199040348,-1466.1,0.00026301,3]
[368533487,1751199040357,-1757.8,0.00026301,3]
[368533488,1751199040366,-1406.09,0.00026301,3]
[368533491,1751199040376,-1501.83,0.00026301,3]
[368533493,1751199040386,-545.82,0.00026301,3]
[368533495,1751199040395,-529.38,0.00026301,3]
[368533497,1751199040404,-313.61,0.00026354,2]
[368533499,1751199040413,-5603.40229624,0.00026374,2]
[368533501,1751199040423,-1000.0,0.00026383,2]
[368533503,1751199040432,-150.0,0.0002639,2]
[368533505,1751199040441,-5603.40229624,0.00026465,2]
[368533507,1751199040450,-241.42030112,0.00026475,2]
[368533509,1751199040461,-1027.94330592,0.00026555,15]
[368533511,1751199040470,-5603.40229624,0.00026564,2]
[368533513,1751199040479,-16810.2068887,0.00026565,2]
[368533515,1751199040488,-500.0,0.00026572,2]
[368533517,1751199040498,-500.0,0.00026572,2]
[368533519,1751199040507,-500.0,0.00026572,2]
[368533521,1751199040517,-500.0,0.00026572,2]
[368533523,1751199040526,-500.0,0.00026572,2]
[368533525,1751199040535,-216.64804314,0.00026572,2]
[368533527,1751199040545,-500.0,0.00026572,2]
[368533529,1751199040554,-500.0,0.00026572,2]
[368533531,1751199040563,-334.37454839,0.00026572,2]
[368533533,1751199040572,-500.0,0.00026572,2]
[368533535,1751199040581,-345.00193058,0.00026572,2]
[368533537,1751199040590,-469.74375828,0.00026572,2]
[368533539,1751199040599,-500.0,0.00026572,2]
[368533541,1751199040609,-500.0,0.00026572,2]
[368533543,1751199040619,-500.0,0.00026572,2]
[368533545,1751199040628,-500.0,0.00026572,2]
[368533547,1751199040637,-500.0,0.00026572,2]
[368533549,1751199040647,-500.0,0.00026572,2]
[368533551,1751199040657,-500.0,0.00026572,2]
[368533553,1751199040666,-500.0,0.00026572,2]
[368533555,1751199040675,-500.0,0.00026572,2]
[368533557,1751199040684,-500.0,0.00026572,2]
[368533559,1751199040693,-572.35369322,0.00026572,2]
[368533562,1751199040704,-500.0,0.00026572,2]
[368533564,1751199040713,-500.0,0.00026572,2]
[368533566,1751199040722,-500.0,0.00026572,2]
[368533567,1751199040732,-500.0,0.00026572,2]
[368533569,1751199040741,-500.0,0.00026572,2]
[368533571,1751199040750,-500.0,0.00026572,2]
[368533573,1751199040760,-500.0,0.00026572,2]
[368533575,1751199040770,-500.0,0.00026572,2]
[368533578,1751199040779,-500.0,0.00026572,2]
[368533579,1751199040789,-500.0,0.00026572,2]
[368533582,1751199040798,-500.0,0.00026572,2]
[368533584,1751199040807,-500.0,0.00026572,2]
[368533586,1751199040818,-500.0,0.00026572,2]
[368533588,1751199040827,-500.0,0.00026572,2]
[368533590,1751199040837,-500.0,0.00026572,2]
[368533592,1751199040846,-500.0,0.00026572,2]
[368533594,1751199040855,-500.0,0.00026572,2]
[368533596,1751199040865,-500.0,0.00026572,2]
[368533598,1751199040875,-500.0,0.00026572,2]
[368533600,1751199040884,-500.0,0.00026572,2]
[368533602,1751199040893,-490.0,0.00026573,3]
[368533604,1751199040902,-490.0,0.00026573,3]
[368533606,1751199040912,-797.18,0.00026573,3]
[368533608,1751199040921,-584.15,0.00026573,3]
[368533610,1751199040931,-735.5,0.00026573,3]
[368533612,1751199040941,-615.06,0.00026573,3]
[368533614,1751199040950,-2064.92,0.00026573,3]
[368533616,1751199040960,-490.0,0.00026573,3]
[368533618,1751199040970,-2101.83,0.00026573,3]
[368533620,1751199040979,-524.41,0.00026573,3]
[368533622,1751199040989,-490.0,0.00026573,3]
[368533624,1751199040999,-490.0,0.00026573,3]
[368533626,1751199041010,-2034.82,0.00026573,3]
[368533628,1751199041019,-490.0,0.00026573,3]
[368533630,1751199041029,-2667.49,0.00026573,3]
[368533632,1751199041039,-490.0,0.00026573,3]
[368533634,1751199041048,-1811.7,0.00026573,3]
[368533636,1751199041058,-780.28,0.00026573,3]
[368533638,1751199041067,-696.46,0.00026573,3]
[368533640,1751199041078,-881.0,0.00026573,3]
[368533642,1751199041088,-5063.18,0.00026573,3]
[368533644,1751199041098,-490.0,0.00026574,3]
[368533646,1751199041107,-490.0,0.00026574,3]
[368533648,1751199041117,-493.27,0.00026574,3]
[368533650,1751199041126,-505.72,0.00026574,3]
[368533652,1751199041135,-490.0,0.00026574,3]
[368533654,1751199041146,-579.85,0.00026574,3]
[368533657,1751199041155,-1000.0,0.00026574,3]
[368533659,1751199041165,-490.0,0.00026574,3]
[368533661,1751199041174,-490.0,0.00026574,3]
[368533663,1751199041184,-539.37,0.00026574,3]
[368533665,1751199041193,-1978.22,0.00026574,3]
[368533667,1751199041203,-1353.16,0.00026574,3]
[368533669,1751199041213,-4829.05,0.00026574,3]
[368533671,1751199041222,-306.36452433,0.00026574,3]
[368533673,1751199041231,-490.0,0.00026574,3]
[368533675,1751199041240,-1586.81,0.00026574,3]
[368533677,1751199041250,-208.93818364,0.00026574,3]
[368533679,1751199041260,-1448.59,0.00026574,3]
[368533681,1751199041271,-490.0,0.00026574,3]
[368533683,1751199041280,-2155.36,0.00026574,3]
[368533685,1751199041289,-1694.12,0.00026574,3]
[368533687,1751199041297,-490.0,0.00026574,2]
[368533689,1751199041307,-670.56,0.00026574,3]
[368533691,1751199041316,-1921.87,0.00026574,3]
[368533693,1751199041326,-1710.84,0.00026574,3]
[368533695,1751199041335,-885.54,0.00026574,3]
[368533697,1751199041344,-490.0,0.00026575,3]
[368533699,1751199041353,-490.0,0.00026575,3]
[368533701,1751199041362,-490.0,0.00026575,3]
[368533703,1751199041372,-579.17,0.00026575,3]
[368533705,1751199041380,-1633.18,0.00026575,3]
[368533707,1751199041390,-490.0,0.00026575,3]
[368533709,1751199041399,-490.0,0.00026575,3]
[368533711,1751199041408,-490.0,0.00026575,3]
[368533713,1751199041416,-2022.53,0.00026575,3]
[368533714,1751199041426,-1446.01,0.00026575,3]
[368533716,1751199041435,-836.17,0.00026575,3]
[368533718,1751199041444,-540.67,0.00026575,3]
[368533721,1751199041453,-532.39,0.00026575,3]
[368533722,1751199041463,-490.0,0.00026575,3]
[368533724,1751199041472,-756.99,0.00026575,3]
[368533726,1751199041481,-1649.78,0.00026575,3]
[368533728,1751199041489,-1652.36,0.00026575,3]
[368533730,1751199041499,-2273.98,0.00026575,3]
[368533732,1751199041509,-662.3,0.00026575,3]
[368533734,1751199041519,-1981.27,0.00026575,3]
[368533736,1751199041528,-990.39,0.00026575,3]
[368533738,1751199041537,-499.4,0.00026575,3]
[368533740,1751199041546,-1466.1,0.00026575,3]
[368533742,1751199041555,-1757.8,0.00026575,3]
[368533744,1751199041565,-1406.09,0.00026575,3]
[368533746,1751199041574,-1501.83,0.00026575,3]
[368533748,1751199041585,-545.82,0.00026575,3]
[368533750,1751199041594,-529.38,0.00026575,3]
[368533752,1751199041604,-2000.0,0.000266,9]
[368533754,1751199041612,-789.05,0.00026616,2]
[368533756,1751199041621,-11206.8045925,0.00026617,2]
[368533758,1751199041630,-278.8,0.00026676,2]
[368533760,1751199041641,-4100.0,0.000267,9]
[368533763,1751199041650,-5603.40229624,0.00026769,2]
[368533765,1751199041660,-185.02695779,0.00026779,2]
[368533767,1751199041669,-153.0633459,0.00026779,2]
[368533769,1751199041678,-5603.40229624,0.0002679,2]
[368533771,1751199041686,-6200.0,0.000268,9]
[368533773,1751199041695,-241.42030103,0.00026809,2]
[368533775,1751199041704,-1680.0,0.00026826,2]
[368533777,1751199041714,-1027.94330592,0.00026831,15]
[368533779,1751199041723,-11206.8045925,0.00026837,2]
[368533780,1751199041731,-50430.6206662,0.00026838,2]
[368533782,1751199041740,-16810.2068887,0.00026839,2]
[368533784,1751199041749,-150.0,0.00026847,2]
[368533786,1751199041759,-150.0,0.00026847,2]
[368533789,1751199041771,-490.0,0.00026847,3]
[368533791,1751199041780,-490.0,0.00026847,3]
[368533793,1751199041789,-797.18,0.00026847,3]
[368533794,1751199041798,-584.15,0.00026847,3]
[368533797,1751199041808,-735.5,0.00026847,3]
[368533799,1751199041817,-615.06,0.00026847,3]
[368533801,1751199041827,-2064.92,0.00026847,3]
[368533802,1751199041836,-490.0,0.00026847,3]
[368533805,1751199041848,-2101.83,0.00026847,3]
[368533806,1751199041858,-524.41,0.00026847,3]
[368533809,1751199041867,-490.0,0.00026847,3]
[368533811,1751199041877,-490.0,0.00026847,3]
[368533813,1751199041886,-2034.82,0.00026847,3]
[368533815,1751199041895,-490.0,0.00026847,3]
[368533817,1751199041905,-2667.49,0.00026847,3]
[368533819,1751199041914,-490.0,0.00026847,3]
[368533820,1751199041923,-1811.7,0.00026847,3]
[368533822,1751199041939,-780.28,0.00026847,3]
[368533824,1751199041949,-696.46,0.00026847,3]
[368533826,1751199041958,-881.0,0.00026847,3]
[368533828,1751199041968,-5063.18,0.00026847,3]
[368533830,1751199041977,-490.0,0.00026848,3]
[368533832,1751199041986,-492.98798094,0.00026848,3]
[368533834,1751199041996,-490.0,0.00026848,3]
[368533836,1751199042006,-560.79,0.00026848,3]
[368533838,1751199042015,-490.0,0.00026848,3]
[368533840,1751199042026,-490.0,0.00026848,3]
[368533842,1751199042035,-490.0,0.00026848,3]
[368533844,1751199042044,-1053.49,0.00026848,3]
[368533846,1751199042054,-490.0,0.00026848,3]
[368533848,1751199042063,-490.0,0.00026848,3]
[368533850,1751199042072,-490.0,0.00026848,3]
[368533852,1751199042081,-778.28,0.00026848,3]
[368533854,1751199042090,-490.0,0.00026848,3]
[368533856,1751199042099,-490.0,0.00026848,3]
[368533858,1751199042109,-490.0,0.00026848,3]
[368533860,1751199042118,-490.0,0.00026848,3]
[368533862,1751199042128,-490.0,0.00026848,3]
[368533864,1751199042137,-490.0,0.00026848,3]
[368533866,1751199042146,-493.27,0.00026848,3]
[368533868,1751199042155,-6595.22,0.00026848,3]
[368533870,1751199042165,-505.72,0.00026848,3]
[368533872,1751199042174,-2157.03,0.00026848,3]
[368533874,1751199042183,-500.0,0.00026848,3]
[368533876,1751199042193,-1814.55,0.00026848,3]
[368533878,1751199042202,-490.0,0.00026848,3]
[368533880,1751199042211,-10065.28,0.00026848,3]
[368533882,1751199042221,-3469.82834,0.00026848,3]
[368533884,1751199042230,-579.85,0.00026848,3]
[368533886,1751199042239,-5123.55,0.00026848,3]
[368533888,1751199042248,-1000.0,0.00026848,3]
[368533890,1751199042259,-490.0,0.00026848,3]
[368533892,1751199042268,-1584.12,0.00026848,3]
[368533921,1751199042498,-490.0,0.00026848,3]
[368533923,1751199042536,-3524.678956,0.00026848,3]
[368533925,1751199042546,-469.11142379,0.00026848,3]
[368533927,1751199042555,-3343.25467,0.00026848,3]
[368533929,1751199042564,-156.157666,0.00026848,3]
[368533931,1751199042574,-2060.14,0.00026848,3]
[368533933,1751199042583,-153.20763,0.00026848,3]
[368533935,1751199042593,-490.0,0.00026848,3]
[368533937,1751199042602,-558.366089,0.00026848,3]
[368533939,1751199042611,-500.0,0.00026848,3]
[368533941,1751199042620,-2080.19,0.00026848,3]
[368533943,1751199042629,-1295.74,0.00026848,3]
[368533945,1751199042638,-2803.92,0.00026848,3]
[368533947,1751199042647,-524.11,0.00026848,3]
[368533949,1751199042657,-12109.74,0.00026848,3]
[368533951,1751199042666,-153.188865,0.00026848,3]
[368533953,1751199042675,-2378.12,0.00026848,3]
[368533955,1751199042684,-226.887391,0.00026848,3]
[368533957,1751199042693,-1978.65,0.00026848,3]
[368533959,1751199042702,-1978.22,0.00026848,3]
[368533961,1751199042711,-4150.38,0.00026848,3]
[368533963,1751199042720,-2607.08,0.00026848,3]
[368533965,1751199042729,-1353.16,0.00026848,3]
[368533967,1751199042738,-1045.94,0.00026848,3]
[368533969,1751199042747,-2661.97,0.00026848,3]
[368533971,1751199042757,-4829.05,0.00026848,3]
[368533973,1751199042766,-490.0,0.00026848,3]
[368533975,1751199042775,-2001.89,0.00026848,3]
[368533977,1751199042784,-1586.81,0.00026848,3]
[368533979,1751199042794,-930.02,0.00026848,3]
[368533981,1751199042803,-1379.03,0.00026848,3]
[368533983,1751199042811,-490.0,0.00026848,3]
[368533985,1751199042820,-1448.59,0.00026848,3]
[368533987,1751199042830,-150.867291,0.00026848,3]
[368533989,1751199042839,-490.0,0.00026848,3]
[368533991,1751199042849,-490.0,0.00026848,3]
[368533993,1751199042858,-490.0,0.00026848,3]
[368533995,1751199042867,-150.71091,0.00026848,3]
[368533997,1751199042876,-2155.36,0.00026848,3]
[368533999,1751199042886,-2226.26,0.00026848,3]
[368534001,1751199042895,-1694.12,0.00026848,3]
[368534003,1751199042904,-490.0,0.00026848,2]
[368534005,1751199042914,-3453.5,0.00026848,3]
[368534007,1751199042924,-1921.62,0.00026848,3]
[368534009,1751199042934,-670.56,0.00026848,3]
[368534011,1751199042943,-1921.87,0.00026848,3]
[368534013,1751199042952,-153.188865,0.00026848,3]
[368534015,1751199042961,-1710.84,0.00026848,3]
[368534017,1751199042971,-885.54,0.00026848,3]
[368534019,1751199042980,-155.124799,0.00026848,3]
[368534021,1751199042990,-226.887383,0.00026848,3]
[368534023,1751199042999,-490.0,0.00026849,3]
[368534025,1751199043008,-490.0,0.00026849,3]
[368534027,1751199043017,-490.0,0.00026849,3]
[368534029,1751199043027,-579.17,0.00026849,3]
[368534031,1751199043036,-1633.18,0.00026849,3]
[368534033,1751199043045,-490.0,0.00026849,3]
[368534035,1751199043055,-490.0,0.00026849,3]
[368534037,1751199043064,-490.0,0.00026849,3]
[368534039,1751199043073,-2022.53,0.00026849,3]
[368534041,1751199043082,-1446.01,0.00026849,3]
[368534043,1751199043091,-836.17,0.00026849,3]
[368534045,1751199043100,-540.67,0.00026849,3]
[368534047,1751199043110,-532.39,0.00026849,3]
[368534049,1751199043119,-490.0,0.00026849,3]
[368534051,1751199043128,-756.99,0.00026849,3]
[368534053,1751199043137,-1649.78,0.00026849,3]
[368534054,1751199043147,-1652.36,0.00026849,3]
[368534055,1751199043156,-2273.98,0.00026849,3]
[368534056,1751199043166,-662.3,0.00026849,3]
[368534057,1751199043175,-1981.27,0.00026849,3]
[368534058,1751199043184,-990.39,0.00026849,3]
[368534059,1751199043193,-499.4,0.00026849,3]
[368534060,1751199043203,-1466.1,0.00026849,3]
[368534061,1751199043212,-1757.8,0.00026849,3]
[368534062,1751199043221,-1406.09,0.00026849,3]
[368534063,1751199043231,-1501.83,0.00026849,3]
[368534064,1751199043240,-545.82,0.00026849,3]
[368534065,1751199043249,-529.38,0.00026849,3]
[368534066,1751199043259,-5603.40229624,0.0002689,2]
[368534068,1751199043268,-8300.0,0.000269,9]
[368534069,1751199043277,-198.0,0.00026906,7]
[368534071,1751199043286,-5603.40229624,0.00026922,2]
[368534073,1751199043296,-1000.0,0.00027,27]
[368534075,1751199043304,-150.27503681,0.00027022,2]
[368534077,1751199043314,-5603.40229624,0.00027074,2]
[368534079,1751199043323,-5603.40229624,0.00027104,2]
[368534081,1751199043333,-1027.94330592,0.00027107,16]
[368534083,1751199043342,-33620.4137774,0.00027112,2]
[368534085,1751199043352,-2068.80291,0.0002712,2]
[368534087,1751199043362,-150.0,0.00027121,2]
[368534089,1751199043371,-490.0,0.00027121,3]
[368534091,1751199043381,-541.45923132,0.00027121,3]
[368534093,1751199043390,-797.18,0.00027121,3]
[368534095,1751199043399,-584.15,0.00027121,3]
[368534097,1751199043409,-735.5,0.00027121,3]
[368534099,1751199043418,-615.06,0.00027121,3]
[368534101,1751199043428,-2064.92,0.00027121,3]
[368534104,1751199043437,-490.0,0.00027121,3]
[368534107,1751199043447,-2101.83,0.00027121,3]